bitfinex/quotes_ETHUSD_20220308
["timestamp","ask_amount","ask_price","bid_price","bid_amount"]
[1646773881835,2.39883018,2556.6,2555.9,0.00456661]
[1646773883780,2.33767532,2556.6,2555.9,0.00456661]
[1646773884585,14.27767532,2556.6,2555.9,0.00456661]
[1646773884787,0.97886,2556.5,2555.9,0.00456661]
[1646773884990,0.97887,2556.4,2555.9,0.00456661]
[1646773885596,12.91887,2556.4,2555.9,0.00456661]
[1646773885794,11.94,2556.2,2555.7,0.01256256]
[1646773885997,11.94,2556.1,2555.7,0.01256256]
[1646773886594,12.94,2556.1,2555.7,0.01256256]
[1646773886895,14.44,2555.9,2555.3,0.00628194]
[1646773887096,17.3775,2555.9,2555.5,0.156605]
[1646773887298,18.3775,2555.9,2555.4,0.01256312]
[1646773887736,11.94,2555.8,2555.4,0.01256312]
[1646773887935,11.94,2555.8,2554.5,5.7884]
[1646773887936,0.98795423,2555.0,2554.5,5.7884]
[1646773888132,2.34631,2555.4,2555.0,1.70824955]
[1646773888339,1.95851,2555.4,2555.0,1.70824955]
[1646773888536,1.0,2555.8,2555.0,2.00824955]
[1646773888735,8.03383487,2556.1,2555.0,2.00824955]
[1646773888936,1.59443487,2556.1,2555.0,2.00824955]
[1646773889338,0.96565531,2555.7,2555.2,0.00121054]
[1646773889639,0.97889,2555.6,2555.2,0.00121054]
[1646773890636,0.97889,2555.6,2555.2,0.00242108]
[1646773890837,0.97889,2555.6,2555.2,0.00121054]
[1646773891292,0.97889,2555.6,2555.0,1.70824955]
[1646773891293,18.39864,2555.4,2555.0,1.70824955]
[1646773891695,0.468,2555.3,2555.0,1.70824955]
[1646773891896,0.97943,2555.0,2554.6,0.08977103]
[1646773892293,1.13046804,2554.9,2554.6,0.00484325]
[1646773892996,0.97943,2555.0,2554.7,0.00354789]
[1646773893193,0.97922,2554.9,2554.7,0.00354789]
[1646773893995,0.97745974,2554.8,2554.7,0.00354789]
[1646773894196,12.91959,2554.6,2554.3,0.00500461]
[1646773894396,0.97959,2554.6,2554.5,0.156671]
[1646773894796,0.97959,2554.6,2554.3,0.00500461]
[1646773895047,1.36739,2554.6,2553.8,0.06484468]
[1646773895737,0.97959,2554.6,2553.8,0.06484468]
[1646773896739,0.97959,2554.6,2554.1,0.00373478]
[1646773897742,0.97959,2554.6,2554.2,0.0037347]
[1646773899086,0.97959,2554.6,2554.3,0.00373467]
[1646773899489,0.97918,2554.8,2554.3,0.00373467]
[1646773899886,0.0516314,2554.5,2554.3,0.00373467]
[1646773900287,0.0516314,2554.5,2554.3,0.00373465]
[1646773900591,0.0516314,2554.5,2554.3,0.30373465]
[1646773901187,0.0516314,2554.5,2554.3,0.00373465]
[1646773901387,0.0516314,2554.5,2554.3,0.00684803]
[1646773901588,0.0516314,2554.5,2554.3,0.00311338]
[1646773905040,0.0516314,2554.5,2554.3,0.00632495]
[1646773905240,0.0516314,2554.5,2554.3,0.00321157]
[1646773908592,0.0516314,2554.5,2554.3,0.00640749]
[1646773908793,0.0516314,2554.5,2554.3,0.00319592]
[1646773909593,0.0516314,2554.5,2554.0,1.1608]
[1646773909793,0.0516314,2554.5,2554.3,0.00319592]
[1646773911041,0.0516314,2554.5,2554.0,1.1608]
[1646773911238,0.0516314,2554.5,2554.0,1.4608]
[1646773912137,0.0516314,2554.5,2554.1,0.00319851]
[1646773913436,0.0516314,2554.5,2554.2,0.00319849]
[1646773914685,0.0516314,2554.5,2554.2,0.00319853]
[1646773915985,0.0516314,2554.5,2554.2,0.00319537]
[1646773917085,0.0516314,2554.5,2554.2,0.00639074]
[1646773917286,0.0516314,2554.5,2554.2,0.00319537]
[1646773918236,0.0516314,2554.5,2554.2,0.00639074]
[1646773918440,0.0516314,2554.5,2554.2,0.00319537]
[1646773919539,0.0516314,2554.5,2554.2,0.00319887]
[1646773920641,0.0516314,2554.5,2554.2,0.00639774]
[1646773920844,0.0516314,2554.5,2554.2,0.00319887]
[1646773922992,0.0516314,2554.5,2554.2,0.00639711]
[1646773923190,0.0516314,2554.5,2553.8,0.01854099]
[1646773923191,0.97971,2554.3,2553.8,0.01854099]
[1646773924289,0.97971,2554.3,2553.8,0.005746]
[1646773926641,0.97971,2554.3,2553.9,0.00373487]
[1646773927241,1.12487854,2554.1,2553.9,0.00373487]
[1646773927537,0.97963,2554.0,2553.9,0.00373487]
[1646773927939,0.97963,2554.0,2553.8,0.005746]
[1646773928982,0.97963,2554.0,2553.8,0.00948095]
[1646773929782,0.97963,2554.0,2553.9,1.60195067]
[1646773929992,0.97963,2554.0,2553.8,0.00948095]
[1646773930185,0.97963,2554.0,2553.8,0.0132159]
[1646773930386,0.97963,2554.0,2553.8,0.00948095]
[1646773931391,0.97963,2554.0,2553.8,0.01260323]
[1646773931592,0.97963,2554.0,2553.8,0.00886828]
[1646773932542,0.97963,2554.0,2553.8,0.01199056]
[1646773932733,0.97963,2554.0,2553.8,0.00886828]
[1646773933739,0.05157267,2553.9,2553.8,0.00886828]
[1646773933938,0.05157267,2553.9,2553.8,0.01199056]
[1646773934239,0.05157267,2553.9,2553.8,0.00886828]
[1646773935240,0.05157267,2553.9,2553.8,0.005746]
[1646773937790,0.05157267,2553.9,2553.4,0.0186146]
[1646773937791,18.39994,2553.8,2553.4,0.0186146]
[1646773937987,14.29018912,2553.8,2553.4,0.0186146]
[1646773938187,14.89994,2553.8,2553.4,0.0186146]
[1646773938392,14.89994,2553.8,2553.4,0.0174462]
[1646773938393,0.98011,2553.5,2553.4,0.0174462]
[1646773938690,12.92011,2553.5,2553.4,0.0174462]
[1646773938891,12.92011,2553.5,2553.0,0.5]
[1646773938892,11.94,2553.2,2553.0,0.5]
[1646773939299,13.24,2553.2,2553.0,0.5]
[1646773939499,13.24,2553.2,2552.8,2.2183547]
[1646773939792,13.708,2553.2,2552.8,2.2183547]
[1646773940053,3.148859,2553.1,2552.8,2.2183547]
[1646773940343,2.188449,2553.1,2552.8,2.2183547]
[1646773940745,1.188449,2553.1,2552.8,2.2183547]
[1646773941148,13.128449,2553.1,2552.8,2.2183547]
[1646773941347,2.188449,2553.1,2552.8,2.2183547]
[1646773941748,1.188449,2553.1,2552.8,2.2183547]
[1646773942154,13.128449,2553.1,2552.8,2.2183547]
[1646773942354,14.128449,2553.1,2552.8,0.975028]
[1646773944686,16.088879,2553.1,2552.8,0.97876065]
[1646773944883,0.05148454,2553.0,2552.8,0.975028]
[1646773945087,0.98017,2552.9,2552.8,0.975028]
[1646773945486,12.92017,2552.9,2552.8,0.9682278]
[1646773945785,13.92017,2552.9,2552.8,0.9682278]
[1646773945984,1.98017,2552.9,2552.8,0.96449515]
[1646773946385,0.98017,2552.9,2552.8,0.96449515]
[1646773946986,12.92017,2552.9,2552.8,0.96449515]
[1646773947385,13.92017,2552.9,2552.8,0.96449515]
[1646773949633,1.98017,2552.9,2552.8,0.96449515]
[1646773949834,0.98017,2552.9,2552.8,0.96449515]
[1646773950232,1.03164474,2552.9,2552.8,0.96449515]
[1646773951989,12.97164474,2552.9,2552.8,0.96449515]
[1646773952392,13.97164474,2552.9,2552.8,0.96449515]
[1646773958045,13.97164474,2552.9,2552.7,0.07559003]
[1646773958243,11.94,2552.8,2552.7,0.07559003]
[1646773958442,15.44,2552.8,2552.7,0.07559003]
[1646773958643,11.94,2552.6,2552.3,0.01373363]
[1646773958888,15.88089,2552.6,2552.3,0.01277363]
[1646773959287,15.88089,2552.6,2552.2,0.03085481]
[1646773959488,2.94089,2552.6,2552.2,0.03085481]
[1646773960488,2.94089,2552.6,2552.2,0.018081]
[1646773961090,2.94089,2552.6,2552.1,1.9262686]
[1646773961493,2.94089,2552.6,2552.3,0.00319984]
[1646773962739,2.94089,2552.6,2552.3,0.00319982]
[1646773962946,2.94089,2552.6,2552.1,1.14166842]
[1646773963139,19.38089,2552.6,2552.1,1.14166842]
[1646773963839,0.05143554,2552.5,2552.1,1.14166842]
[1646773964040,0.98025,2552.4,2552.1,1.14166842]
[1646773964640,0.98025,2552.4,2552.2,0.5]
[1646773966041,0.98025,2552.4,2552.1,1.14486465]
[1646773966286,0.98025,2552.4,2552.2,0.00319621]
[1646773967693,0.98025,2552.4,2552.1,1.14166842]
[1646773968598,0.98025,2552.4,2552.1,1.52946842]
[1646773968796,0.98025,2552.4,2552.1,1.5325652]
[1646773968999,0.05141594,2552.3,2552.1,1.5325652]
[1646773970048,2.01188594,2552.3,2552.1,1.535662]
[1646773970237,2.01188594,2552.3,2552.1,1.83256522]
[1646773970437,2.01188594,2552.3,2552.1,0.3030968]
[1646773970636,2.01188594,2552.3,2552.1,0.0030968]
[1646773971036,2.01188594,2552.3,2552.1,0.0061936]
[1646773971238,0.05141594,2552.3,2552.1,0.0030968]
[1646773972443,0.98018,2552.2,2552.1,0.00314343]
[1646773973245,0.05141594,2552.3,2552.1,0.00314343]
[1646773973810,0.05141594,2552.3,2552.0,0.04746185]
[1646773974008,3.01150614,2552.7,2552.0,0.04746185]
[1646773974409,0.98006,2552.5,2552.0,0.04746185]
[1646773975211,0.98006,2552.5,2552.3,1.11863944]
[1646773975415,0.05140614,2552.7,2552.3,1.50643944]
[1646773975616,0.05140614,2552.7,2552.4,1.6229]
[1646773979042,1.03131534,2553.1,2552.4,1.6229]
[1646773979243,1.03131534,2553.1,2552.5,0.97988]
[1646773979643,1.03131534,2553.1,2552.5,1.27988]
[1646773980644,1.03131534,2553.1,2552.6,1.60270902]
[1646773982593,1.03131534,2553.1,2552.6,1.40270902]
[1646773983994,1.03131534,2553.1,2552.7,1.95962]
[1646773984193,1.03131534,2553.1,2552.5,0.3]
[1646773984395,1.03131534,2553.1,2552.4,1.5351]
[1646773984597,1.03131534,2553.1,2552.4,1.9269]
[1646773985942,1.03131534,2553.1,2552.6,1.95962]
[1646773986348,1.03131534,2553.1,2552.6,2.55962]
[1646773987444,1.03131534,2553.1,2552.6,2.35962]
[1646773987644,1.03131534,2553.1,2552.6,0.3]
[1646773987845,1.03131534,2553.1,2552.4,1.2351]
[1646773987846,1.42311534,2553.1,2552.4,1.2351]
[1646773988244,0.98012,2552.9,2552.4,1.2351]
[1646773989289,0.98012,2552.9,2552.4,1.5351]
[1646773993344,0.05148454,2553.0,2552.5,2.3513582]
[1646773993642,0.05148454,2553.0,2552.6,1.95942]
[1646773993841,0.05148454,2553.0,2552.6,2.25942]
[1646773994043,0.05148454,2553.0,2552.7,1.1896]
[1646773994240,2.9398,2553.6,2552.7,2.76926]
[1646773994241,2.99126494,2553.6,2552.7,2.76926]
[1646773994441,2.99126494,2553.6,2552.7,1.7896]
[1646773994642,2.99126494,2553.6,2552.7,1.4896]
[1646773994841,2.99126494,2553.6,2552.9,0.979655]
[1646773995240,2.99126494,2553.6,2553.0,0.3]
[1646773995441,0.97972,2553.5,2553.0,0.3]
[1646773995643,0.97972,2553.5,2553.0,1.27259417]
[1646773995843,0.05146494,2553.6,2553.1,3.9181055]
[1646773996042,0.05146494,2553.6,2553.1,6.105697]
[1646773996301,0.05146494,2553.6,2553.1,7.705697]
[1646773997505,0.05146494,2553.6,2553.1,6.705697]
[1646773997705,0.05146494,2553.6,2553.2,2.93823]
[1646773998109,0.05146494,2553.6,2553.1,1.8081]
[1646773998507,0.05146494,2553.6,2553.1,1.2081]
[1646773999110,0.05153351,2553.8,2553.1,1.2081]
[1646773999315,0.05486986,2553.8,2553.1,2.1877253]
[1646773999509,0.97964,2553.6,2553.1,4.1469153]
[1646773999908,0.97964,2553.6,2553.1,4.4469153]
[1646774000342,0.97964,2553.6,2553.1,3.46729]
[1646774002449,0.05489089,2553.8,2553.2,0.97959]
[1646774002651,0.05489089,2553.8,2553.3,1.99395708]
[1646774002652,0.05153351,2553.8,2553.3,1.99395708]
[1646774002847,0.05153351,2553.8,2553.5,0.3918]
[1646774003047,0.05471349,2553.8,2553.5,0.3918]
[1646774003246,0.05471349,2553.8,2553.5,0.6918]
[1646774003901,0.05153351,2553.8,2553.5,0.6918]
[1646774004104,1.04080657,2554.5,2553.8,1.03909609]
[1646774004301,1.04080657,2554.5,2553.9,1.1532]
[1646774004504,2.02010657,2554.5,2553.9,1.1532]
[1646774005302,0.00318401,2554.3,2553.9,1.1532]
[1646774006103,0.00318401,2554.3,2553.9,2.13249]
[1646774006305,2.02010657,2554.5,2553.9,2.13249]
[1646774006508,0.00319261,2554.2,2553.9,2.13249]
[1646774007409,0.9793,2554.5,2553.9,2.13249]
[1646774007643,0.00319263,2554.2,2553.9,2.13249]
[1646774008342,0.00319263,2554.2,2553.9,1.93249]
[1646774008742,1.95499907,2554.3,2553.9,1.93249]
[1646774008943,0.05479396,2554.2,2553.9,1.93249]
[1646774009343,0.05479396,2554.2,2554.0,3.0]
[1646774009550,0.05479396,2554.2,2554.0,3.3]
[1646774009949,0.05160204,2554.2,2554.0,3.3]
[1646774010148,0.05479254,2554.2,2554.0,3.3]
[1646774010750,0.05479254,2554.2,2554.0,3.2821]
[1646774011151,0.05160204,2554.2,2554.0,3.2821]
[1646774011395,0.05160204,2554.2,2554.0,3.0]
[1646774011396,0.05479254,2554.2,2554.0,3.0]
[1646774012198,0.05160204,2554.2,2554.0,3.0]
[1646774012599,0.05479266,2554.2,2554.0,3.0]
[1646774013399,0.05160204,2554.2,2554.0,3.0]
[1646774013802,0.05479288,2554.2,2554.0,3.0]
[1646774014701,0.05160204,2554.2,2554.0,3.0]
[1646774014903,0.05479288,2554.2,2554.0,3.0]
[1646774015341,0.05479288,2554.2,2554.0,3.3]
[1646774016047,0.05479286,2554.2,2554.0,3.0]
[1646774017048,0.05160204,2554.2,2554.0,3.0]
[1646774017451,0.05479283,2554.2,2554.0,3.0]
[1646774018248,3.55160204,2554.2,2554.0,3.0]
[1646774018449,3.55160204,2554.2,2554.0,2.90775088]
[1646774018450,4.73272731,2554.2,2554.0,2.90775088]
[1646774018650,5.67674581,2554.2,2554.0,2.90775088]
[1646774018894,4.49562054,2554.2,2554.0,2.90775088]
[1646774019095,4.55479283,2554.2,2554.0,2.90775088]
[1646774019294,4.49562054,2554.2,2554.0,2.90775088]
[1646774019495,0.99242975,2554.2,2554.0,2.90775088]
[1646774019700,1.99562054,2554.2,2554.0,2.90775088]
[1646774019895,0.05479283,2554.2,2554.0,2.90775088]
[1646774020396,4.49562054,2554.2,2554.0,2.23105195]
[1646774020598,4.49242975,2554.2,2554.0,2.23105195]
[1646774020796,5.49242975,2554.2,2554.0,2.23105195]
[1646774020997,5.49562055,2554.2,2554.0,2.23105195]
[1646774021398,1.99562055,2554.2,2554.0,2.23105195]
[1646774021799,0.99242975,2554.2,2554.0,2.23105195]
[1646774022203,0.05479284,2554.2,2554.0,2.23105195]
[1646774022401,5.0,2554.1,2553.9,0.156712]
[1646774022646,18.86053771,2554.1,2553.9,0.156712]
[1646774022842,3.41437344,2554.1,2553.9,0.156712]
[1646774023446,1.98290084,2554.1,2553.9,0.156712]
[1646774023646,0.98290084,2554.1,2553.9,0.156712]
[1646774024046,1.03449309,2554.1,2553.9,0.156712]
[1646774024247,1.97212996,2554.1,2553.9,0.156712]
[1646774024448,1.9753208,2554.1,2553.9,0.156712]
[1646774024649,0.88068567,2554.0,2553.9,0.156712]
[1646774025749,1.03449311,2554.1,2553.9,0.156712]
[1646774026597,1.03130225,2554.1,2553.9,0.156712]
[1646774026997,1.03449309,2554.1,2553.9,0.156712]
[1646774027903,1.03130225,2554.1,2553.9,0.156712]
[1646774028099,1.0344931,2554.1,2553.9,0.156712]
[1646774029100,1.03130225,2554.1,2553.9,0.156712]
[1646774029300,1.0344931,2554.1,2553.9,0.156712]
[1646774030345,1.03130225,2554.1,2553.9,0.156712]
[1646774030549,0.05478309,2554.1,2553.9,0.156712]
[1646774031550,0.05159225,2554.1,2553.9,0.156712]
[1646774031751,0.05478309,2554.1,2553.9,0.156712]
[1646774032053,0.05478309,2554.1,2553.9,1.136052]
[1646774032254,0.05478309,2554.1,2553.9,0.97934]
[1646774032652,0.05159225,2554.1,2553.9,0.97934]
[1646774032852,0.05478309,2554.1,2553.9,0.97934]
[1646774033817,0.05159225,2554.1,2553.8,0.3]
[1646774034012,0.05159225,2554.1,2553.7,5.87274741]
[1646774034212,0.05478309,2554.1,2553.7,5.87274741]
[1646774035114,0.05159225,2554.1,2553.7,5.87274741]
[1646774035315,0.00319089,2554.0,2553.7,5.87274741]
[1646774035515,0.00319089,2554.0,2553.7,4.89335201]
[1646774035720,0.00319089,2554.0,2553.7,3.7459]
[1646774036319,1.03106225,2554.1,2553.7,3.7459]
[1646774036618,0.00319091,2554.0,2553.7,3.7459]
[1646774036920,0.00319091,2554.0,2553.7,1.7873]
[1646774037119,0.00319091,2554.0,2553.7,1.1873]
[1646774037318,0.00319091,2554.0,2553.8,6.0]
[1646774037557,1.03106225,2554.1,2553.8,6.0]
[1646774037847,0.00319091,2554.0,2553.8,6.0]
[1646774038646,1.03106225,2554.1,2553.8,6.0]
[1646774038845,0.0031909,2554.0,2553.8,6.0]
[1646774039247,0.05157267,2553.9,2553.8,6.0]
[1646774041894,0.99240038,2553.9,2553.8,6.0]
[1646774042498,0.05157267,2553.9,2553.8,6.0]
[1646774042696,1.01594051,2553.9,2553.8,6.0]
[1646774043097,0.05157267,2553.9,2553.8,6.0]
[1646774045948,0.05157267,2553.9,2553.8,5.99897581]
[1646774046651,0.05157267,2553.9,2553.8,7.60105434]
[1646774047652,0.05157267,2553.9,2553.8,7.90105434]
[1646774048052,0.05157267,2553.9,2553.8,8.36905434]
[1646774048651,0.05157267,2553.9,2553.8,6.46697581]
[1646774049099,0.05157267,2553.9,2553.8,8.06909405]
[1646774049701,0.05157267,2553.9,2553.8,6.46697581]
[1646774049899,0.05157267,2553.9,2553.8,8.06905606]
[1646774050902,0.05157267,2553.9,2553.8,8.76085606]
[1646774056153,0.00319092,2554.0,2553.9,5.0]
[1646774056404,0.00319092,2554.0,2553.9,3.46188025]
[1646774056599,0.00319092,2554.0,2553.9,4.59178025]
[1646774056799,0.03819997,2555.0,2554.0,0.00697172]
[1646774056800,0.98290697,2555.0,2554.0,0.00697172]
[1646774057003,0.98290697,2555.0,2554.1,5.00727355]
[1646774057206,0.98290697,2555.0,2554.2,2.73198025]
[1646774057403,0.03819997,2555.0,2554.5,12.0]
[1646774057600,0.944707,2555.1,2554.6,0.89519869]
[1646774058002,0.944707,2555.0,2554.6,0.89519869]
[1646774058203,0.00319051,2554.9,2554.6,0.89519869]
[1646774059107,1.923797,2555.2,2554.6,0.89519869]
[1646774059505,0.0031929,2554.9,2554.6,0.89519869]
[1646774060359,1.923797,2555.2,2554.6,0.89519869]
[1646774060559,0.00319288,2554.9,2554.6,0.89519869]
[1646774061560,0.97909,2555.2,2554.6,0.89519869]
[1646774061764,0.00319288,2554.9,2554.6,0.89519869]
[1646774062764,0.97909,2555.2,2554.6,0.89519869]
[1646774062962,0.0031903,2554.9,2554.6,1.36319869]
[1646774064000,0.04967719,2554.8,2554.6,0.468]
[1646774065301,0.05286744,2554.8,2554.6,0.468]
[1646774065702,0.05286744,2554.8,2554.5,13.1941]
[1646774065903,1.03205744,2554.8,2554.5,13.1941]
[1646774066303,1.02886719,2554.8,2554.5,13.1941]
[1646774066702,1.03205764,2554.8,2554.5,13.1941]
[1646774067547,1.02886719,2554.8,2554.5,13.1941]
[1646774067748,1.03205774,2554.8,2554.5,13.1941]
[1646774068551,0.05286774,2554.8,2554.5,13.6621]
[1646774068750,0.05286774,2554.8,2554.5,14.64111]
[1646774068751,0.04967719,2554.8,2554.5,14.64111]
[1646774069151,0.00319055,2554.8,2554.5,14.64111]
[1646774069352,0.00319055,2554.8,2554.7,1.04166067]
[1646774069556,0.00319055,2554.8,2554.7,0.468]
[1646774069852,1.0287374,2555.2,2554.7,0.468]
[1646774070254,0.00319049,2554.9,2554.7,0.468]
[1646774070455,0.00319049,2554.9,2554.5,13.1941]
[1646774071295,0.97912,2555.0,2554.5,13.1941]
[1646774071504,0.00319049,2554.8,2554.5,13.1941]
[1646774071700,0.00319049,2554.8,2554.6,0.468]
[1646774072399,0.0496674,2555.2,2554.6,0.468]
[1646774072400,0.0496674,2555.2,2554.6,0.8598]
[1646774072602,0.0496674,2555.2,2554.7,1.10439785]
[1646774072899,0.00319049,2554.8,2554.6,2.9367395]
[1646774073101,0.00319049,2554.8,2554.7,0.468]
[1646774073901,0.0496674,2555.2,2554.7,0.8598]
[1646774073902,0.00319047,2554.9,2554.7,0.8598]
[1646774074102,0.04967719,2554.8,2554.7,0.8598]
[1646774074501,0.04967719,2554.8,2554.7,2.46120137]
[1646774074903,0.04967719,2554.8,2554.7,3.62509027]
[1646774076150,0.04967719,2554.8,2554.7,2.0236889]
[1646774077353,0.04967719,2554.8,2554.7,2.02256576]
[1646774078350,0.04967719,2554.8,2554.7,1.63076576]
[1646774082551,0.04967719,2554.8,2554.7,1.93076576]
[1646774083952,0.04967719,2554.8,2554.7,0.76687686]
[1646774085359,0.04967719,2554.8,2554.7,0.46687686]
[1646774085658,0.04967719,2554.8,2554.5,13.350717]
[1646774085862,0.04967719,2554.8,2554.5,12.156617]
[1646774086058,0.04967719,2554.8,2554.5,12.0]
[1646774087105,0.0528677,2554.8,2554.5,12.0]
[1646774087904,0.04967719,2554.8,2554.5,12.0]
[1646774088205,0.05286771,2554.8,2554.5,12.0]
[1646774089104,0.04967719,2554.8,2554.5,12.0]
[1646774089507,3.55159244,2554.8,2554.5,12.0]
[1646774089806,4.55159244,2554.8,2554.5,12.0]
[1646774090051,1.05159244,2554.8,2554.5,12.0]
[1646774090256,1.84524377,2554.7,2554.5,5.68577668]
[1646774090452,1.84524377,2554.7,2554.5,5.01157582]
[1646774090653,4.78378377,2554.7,2554.5,5.01157582]
[1646774091053,5.78378377,2554.7,2554.5,5.01157582]
[1646774091652,4.83907677,2554.7,2554.5,5.01157582]
[1646774091854,5.78697431,2554.7,2554.5,5.01157582]
[1646774092453,3.32243363,2554.6,2554.5,5.01157582]
[1646774092655,4.30200363,2554.6,2554.5,5.01157582]
[1646774092858,5.30200363,2554.6,2554.5,5.01157582]
[1646774093053,1.97957,2554.6,2554.5,5.01157582]
[1646774093254,2.5,2554.5,2553.4,3.5]
[1646774093455,1.95919,2554.4,2553.3,1.60256]
[1646774093898,1.95919,2554.4,2553.3,2.58209]
[1646774094103,1.95919,2554.4,2553.4,3.5]
[1646774094300,0.00319073,2554.3,2553.4,4.72375379]
[1646774094900,1.00666557,2554.3,2553.4,4.72375379]
[1646774095100,1.00347484,2554.3,2553.4,4.72375379]
[1646774095503,0.9795,2554.2,2553.4,4.72375379]
[1646774095703,0.9795,2554.2,2553.3,2.58209]
[1646774096103,0.9795,2554.2,2553.4,3.5]
[1646774096705,0.98269077,2554.2,2553.4,3.5]
[1646774096905,0.98269077,2554.2,2553.9,0.156689]
[1646774097305,0.98269077,2554.2,2553.4,4.47477876]
[1646774097545,0.9795,2554.2,2553.4,4.47477876]
[1646774097948,0.98269078,2554.2,2553.4,4.47477876]
[1646774098352,0.98269078,2554.2,2553.4,0.97477876]
[1646774098553,0.98269078,2554.2,2554.0,7.50697172]
[1646774099054,0.9826908,2554.2,2554.0,7.50697172]
[1646774099253,0.04955964,2554.1,2554.0,7.50697172]
[1646774109300,0.93846636,2554.1,2554.0,7.50697172]
[1646774118199,0.93846636,2554.1,2554.0,7.505792]
[1646774125596,0.93846636,2554.1,2554.0,11.005792]
[1646774126599,0.93846636,2554.1,2554.0,12.60757004]
[1646774127003,0.93164516,2554.1,2554.0,12.60757004]
[1646774127548,0.93164516,2554.1,2554.0,12.90757004]
[1646774127949,0.00319082,2554.2,2554.1,2.5]
[1646774128151,0.00319082,2554.2,2554.1,7.99357804]
[1646774128651,0.00319082,2554.2,2554.1,5.49357804]
[1646774128851,2.93836,2554.9,2554.3,0.9791553]
[1646774129049,2.93836,2554.9,2554.7,0.88109832]
[1646774129456,2.93836,2554.9,2554.6,0.3]
[1646774129852,2.93836,2554.9,2554.4,1.2082]
[1646774130053,3.883067,2554.9,2554.4,1.2082]
[1646774130453,3.8862575,2554.9,2554.4,1.2082]
[1646774131303,3.883067,2554.9,2554.4,1.2082]
[1646774131506,0.00319294,2554.8,2554.4,1.2082]
[1646774131906,0.00319294,2554.8,2554.4,1.5082]
[1646774132113,0.00319294,2554.8,2554.4,2.48735]
[1646774132506,1.923887,2555.0,2554.4,2.78735]
[1646774132707,0.00319296,2554.7,2554.4,2.78735]
[1646774132906,0.00319296,2554.7,2554.4,3.766511]
[1646774133108,0.00319296,2554.7,2554.4,7.266511]
[1646774133507,0.00319296,2554.7,2554.4,3.766511]
[1646774133712,0.97918,2555.0,2554.0,9.464222]
[1646774133909,0.97941,2554.6,2554.1,1.60169702]
[1646774134108,0.97837876,2554.6,2554.0,7.505792]
[1646774134307,1.92308576,2554.6,2554.0,7.505792]
[1646774134711,0.944707,2554.5,2554.0,7.505792]
[1646774134909,1.959,2554.4,2554.0,7.505792]
[1646774135148,1.96219044,2554.4,2554.0,7.505792]
[1646774135349,14.84689744,2554.4,2554.0,7.505792]
[1646774135750,15.84689744,2554.4,2554.0,7.505792]
[1646774135951,0.944707,2554.4,2554.0,11.005792]
[1646774136149,0.944707,2554.5,2554.0,7.505792]
[1646774136354,1.95884,2554.6,2554.0,7.505792]
[1646774136355,0.00319048,2554.3,2554.0,7.505792]
[1646774137154,0.944707,2554.5,2554.0,7.505792]
[1646774137555,0.00319061,2554.3,2554.0,7.505792]
[1646774137755,0.98263061,2554.3,2554.0,7.505792]
[1646774138357,0.97944,2554.3,2554.0,7.505792]
[1646774138657,0.9826308,2554.3,2554.0,7.505792]
[1646774139103,1.03030387,2554.3,2554.0,7.505792]
[1646774139703,1.02711307,2554.3,2554.0,7.505792]
[1646774139906,1.03030387,2554.3,2554.0,7.505792]
[1646774141001,1.02711307,2554.3,2554.0,7.505792]
[1646774141201,1.03030385,2554.3,2554.0,7.505792]
[1646774142103,1.02711307,2554.3,2554.0,7.505792]
[1646774142305,1.03030383,2554.3,2554.0,7.505792]
[1646774142947,1.03030383,2554.3,2554.0,7.805792]
[1646774143147,1.02711307,2554.3,2554.0,7.805792]
[1646774143549,1.03030383,2554.3,2554.0,7.805792]
[1646774144449,1.02711307,2554.3,2554.0,7.805792]
[1646774144647,1.03030384,2554.3,2554.0,7.805792]
[1646774145650,1.02711307,2554.3,2554.0,7.755792]
[1646774145849,1.03030384,2554.3,2554.0,7.755792]
[1646774146050,1.03030384,2554.3,2554.0,7.505792]
[1646774146911,1.02711307,2554.3,2554.0,7.505792]
[1646774147111,1.03030384,2554.3,2554.0,7.505792]
[1646774148114,1.02711307,2554.3,2554.0,7.505792]
[1646774148316,1.03030384,2554.3,2554.0,7.505792]
[1646774148515,1.97501084,2554.3,2554.0,7.505792]
[1646774148718,0.944707,2554.1,2554.0,7.505792]
[1646774149315,0.04766329,2554.2,2554.0,7.505792]
[1646774149515,0.05085409,2554.2,2554.0,7.505792]
[1646774149915,1.03058919,2554.2,2554.0,7.505792]
[1646774150359,0.3,2554.1,2554.0,7.505792]
[1646774150756,13.18801531,2554.1,2554.0,7.505792]
[1646774150957,12.24,2554.1,2554.0,7.505792]
[1646774151156,13.24,2554.1,2554.0,7.505792]
[1646774151363,14.18795161,2554.1,2554.0,7.505792]
[1646774151560,2.24795161,2554.1,2554.0,7.505792]
[1646774151762,1.24795161,2554.1,2554.0,7.505792]
[1646774152361,13.18795161,2554.1,2554.0,7.505792]
[1646774152761,14.18795161,2554.1,2554.0,7.505792]
[1646774153161,14.18795161,2554.1,2554.0,1.626952]
[1646774153362,14.65706049,2554.1,2554.0,1.626952]
[1646774154002,14.70471399,2554.1,2554.0,1.626952]
[1646774154402,1.3476535,2554.1,2554.0,1.626952]
[1646774154800,0.3476535,2554.1,2554.0,1.626952]
[1646774155003,0.0476535,2554.1,2554.0,1.626952]
[1646774156002,12.58811158,2554.1,2554.0,1.626952]
[1646774156203,13.58811158,2554.1,2554.0,1.626952]
[1646774159851,13.58811158,2554.1,2553.3,5.10096]
[1646774159852,11.94,2553.9,2553.3,5.10096]
[1646774160052,11.94,2553.9,2553.3,5.1]
[1646774160053,11.94,2553.8,2553.3,5.1]
[1646774160253,12.24,2553.8,2553.3,5.1]
[1646774160454,13.24,2553.8,2553.3,5.1]
[1646774160657,14.1869658,2553.8,2553.3,5.1]
[1646774161053,1.95965,2553.7,2553.3,5.1]
[1646774161302,3.05937875,2553.7,2553.3,5.1]
[1646774161506,4.03932875,2553.7,2553.3,5.1]
[1646774161706,5.33932875,2553.7,2553.3,5.1]
[1646774161907,0.9469658,2553.6,2553.3,5.1]
[1646774162511,2.9068558,2553.6,2553.3,5.1]
[1646774162709,3.9068558,2553.6,2553.3,5.1]
[1646774162912,2.95989,2553.6,2553.3,5.1]
[1646774163109,3.25989,2553.6,2553.3,5.1]
[1646774163314,0.97993,2553.5,2553.3,5.1]